bitfinex-derivatives/quotes_SOLF0:USTF0_20240908
["timestamp","ask_amount","ask_price","bid_price","bid_amount"]
[1725813202687,2.7172,127.66,127.58,3.1352]
[1725813202985,2.7172,127.66,127.56,3.87151144]
[1725813203174,3.1348,127.61,127.48,11.8498]
[1725813203377,3.1348,127.61,127.49,1.44056075]
[1725813204272,2.7172,127.66,127.49,1.44056075]
[1725813204689,3.9532092,127.69,127.49,1.44056075]
[1725813204884,3.1337,127.65,127.49,1.44056075]
[1725813205787,3.91910953,127.7,127.5,1.44009194]
[1725813205981,3.91910953,127.7,127.49,1.44009194]
[1725813206181,3.91910953,127.7,127.5,1.44009194]
[1725813206382,3.91910953,127.7,127.51,1.44009194]
[1725813206581,3.134,127.64,127.52,1.44009194]
[1725813206884,3.134,127.64,127.53,3.9171]
[1725813207287,3.134,127.64,127.59,3.135]
[1725813207587,3.91910953,127.7,127.53,3.9171]
[1725813208291,3.91910953,127.7,127.53,11.7691]
[1725813208494,3.91910953,127.7,127.53,3.9171]
[1725813208892,3.91910953,127.7,127.59,3.1349]
[1725813209197,3.91910953,127.7,127.59,7.09313538]
[1725813209379,3.91910953,127.7,127.53,3.9171]
[1725813209682,3.134,127.64,127.53,3.9171]
[1725813210491,3.91910953,127.7,127.6,3.1347]
[1725813210694,3.91910953,127.7,127.61,3.98761949]
[1725813211094,3.91910953,127.7,127.6,3.1347]
[1725813211482,3.91910953,127.7,127.6,7.13799102]
[1725813211682,3.1342,127.64,127.6,7.13799102]
[1725813215487,3.1342,127.64,127.61,3.1346]
[1725813215989,3.1337,127.65,127.61,3.1346]
[1725813216594,3.134,127.64,127.6,7.13809102]
[1725813217800,3.91910953,127.7,127.61,3.1344]
[1725813218094,4.0215,127.71,127.61,3.1344]
[1725813218298,3.1339,127.64,127.6,7.13799102]
[1725813218495,3.1339,127.64,127.6,3.1347]
[1725813218687,7.85240424,127.71,127.53,3.9171]
[1725813218885,3.134,127.64,127.6,3.1347]
[1725813219102,3.134,127.64,127.6,7.08118174]
[1725813222693,7.85240424,127.71,127.6,3.94648174]
[1725813222896,0.28805535,127.7,127.53,3.9171]
[1725813223293,31.37240424,127.71,127.57,3.1356]
[1725813223494,0.2880795,127.7,127.57,3.1356]
[1725813223998,3.1347,127.61,127.57,3.1356]
[1725813225292,3.88322884,127.64,127.58,3.99098746]
[1725813225597,2.7785,127.63,127.53,3.9171]
[1725813225797,3.1353,127.59,127.55,3.136]
[1725813226103,4.055,127.63,127.53,3.9171]
[1725813226791,3.98510971,127.62,127.53,1.2712]
[1725813227097,4.055,127.63,127.51,3.97672621]
[1725813227307,3.1363,127.55,127.51,3.1371]
[1725813227600,3.1363,127.55,127.51,7.07289648]
[1725813227789,3.1363,127.55,127.51,3.1371]
[1725813228391,31.48805981,127.63,127.51,3.82681726]
[1725813228600,31.48805981,127.63,127.46,3.9981]
[1725813228798,3.1363,127.55,127.5,3.1372]
[1725813229194,31.48805981,127.63,127.5,3.1372]
[1725813229395,0.28824349,127.62,127.5,3.1372]
[1725813229902,3.1363,127.55,127.5,3.1372]
[1725813230402,3.1362,127.55,127.46,3.9981]
[1725813231305,3.1362,127.55,127.51,3.1371]
[1725813231505,3.1362,127.55,127.51,7.11882835]
[1725813231699,31.48805981,127.63,127.51,3.98172835]
[1725813231906,0.28823758,127.62,127.49,3.1374]
[1725813232103,0.2882492,127.61,127.49,3.1374]
[1725813232406,3.1366,127.54,127.49,3.1374]
[1725813232711,3.1366,127.54,127.46,3.9981]
[1725813233095,3.1366,127.54,127.5,3.1372]
[1725813234204,3.1361,127.56,127.46,3.9981]
[1725813234602,3.1361,127.56,127.51,3.1369]
[1725813234802,3.1361,127.56,127.51,6.96061392]
[1725813235108,7.96805981,127.63,127.51,6.96061392]
[1725813235109,7.96805981,127.63,127.51,3.82371392]
[1725813235307,7.96805981,127.63,127.53,3.1365]
[1725813235604,3.1357,127.57,127.53,7.10842597]
[1725813235908,3.1357,127.57,127.53,3.1365]
[1725813236405,3.1357,127.57,127.53,6.96099811]
[1725813237496,3.1359,127.56,127.53,3.82449811]
[1725813237699,7.96805981,127.63,127.46,3.9981]
[1725813237898,0.28820462,127.62,127.46,3.9981]
[1725813239514,3.136,127.56,127.52,3.1369]
[1725813239700,3.136,127.56,127.52,7.06076702]
[1725813241812,3.1363,127.55,127.52,3.92386702]
[1725813242002,3.1363,127.55,127.51,3.1371]
[1725813242206,31.48805981,127.63,127.46,3.9981]
[1725813242403,3.1361,127.56,127.52,3.1367]
[1725813242703,3.1361,127.56,127.52,7.1436782]
[1725813242909,3.1361,127.56,127.52,3.1367]
[1725813243501,3.1361,127.56,127.52,6.98402266]
[1725813243700,3.1362,127.55,127.52,6.98402266]
[1725813243905,31.48805981,127.63,127.52,3.84732266]
[1725813244205,3.1365,127.54,127.46,3.9981]
[1725813245107,3.1365,127.54,127.5,3.1373]
[1725813245311,31.48805981,127.63,127.46,3.9981]
[1725813245605,0.28824526,127.62,127.49,3.1376]
[1725813246215,3.1368,127.53,127.49,3.1376]
[1725813248409,2.6678,127.55,127.48,3.1378]
[1725813248609,2.6678,127.55,127.46,1.3258]
[1725813248610,4.0064,127.55,127.46,1.3258]
[1725813249514,3.1375,127.5,127.46,4.464]
[1725813250206,3.1375,127.5,127.47,3.1381]
[1725813250815,3.1375,127.5,127.46,4.4641]
[1725813251018,3.1377,127.49,127.41,2.6279]
[1725813251316,3.1377,127.49,127.45,3.1384]
[1725813252714,3.138,127.48,127.44,153.0514023]
[1725813253610,3.1376,127.49,127.45,3.1385]
[1725813254809,3.1375,127.5,127.46,3.1383]
[1725813255013,4.0064,127.55,127.44,149.9126023]
[1725813255210,3.137,127.52,127.44,149.9126023]
[1725813255914,3.137,127.52,127.48,3.1378]
[1725813256117,3.1367,127.53,127.44,149.9126023]
[1725813257019,4.0064,127.55,127.44,149.9126023]
[1725813257218,2.6678,127.55,127.52,3.1369]
[1725813257520,2.6678,127.55,127.53,3.91198619]
[1725813257914,1.3983,127.55,127.53,3.91198619]
[1725813258327,4.5346,127.55,127.44,149.9126023]
[1725813259621,4.5346,127.55,127.51,3.1371]
[1725813259822,4.5346,127.55,127.51,6.9792424]
[1725813264124,3.1363,127.55,127.51,6.9792424]
[1725813264830,3.1363,127.55,127.52,3.1368]
[1725813265519,3.1363,127.55,127.53,3.99474633]
[1725813265937,3.1359,127.56,127.53,3.99474633]
[1725813268134,3.1361,127.55,127.53,3.99474633]
[1725813269234,3.1359,127.56,127.44,149.9126023]
[1725813269722,3.1363,127.55,127.44,149.9126023]
[1725813270729,3.136,127.56,127.52,3.1368]
[1725813270930,1.2684,127.6,127.52,3.84733003]
[1725813271133,1.2684,127.6,127.44,157.7646023]
[1725813271334,3.1357,127.57,127.53,3.1365]
[1725813271537,3.1357,127.57,127.53,7.1371273]
[1725813278037,3.1355,127.58,127.54,3.1362]
[1725813279136,1.2684,127.6,127.54,3.1362]
[1725813279733,3.1356,127.58,127.54,3.1362]
[1725813280640,3.1356,127.58,127.55,3.1361]
[1725813281737,3.1356,127.58,127.54,3.1363]
[1725813282140,1.3365,127.61,127.53,4.0006273]
[1725813282338,1.3365,127.61,127.54,1.4019]
[1725813282636,1.3365,127.61,127.54,5.23951957]
[1725813282835,1.3365,127.61,127.54,1.4019]
[1725813283035,3.1351,127.6,127.56,3.1357]
[1725813283236,3.1351,127.6,127.56,6.96077448]
[1725813283436,3.1351,127.6,127.56,3.1357]
[1725813283940,3.1351,127.6,127.56,6.9980177]
[1725813291139,3.1351,127.6,127.57,3.1356]
[1725813292035,3.1346,127.62,127.56,3.8623177]
[1725813292246,1.355,127.65,127.56,1.3414]
[1725813292447,1.355,127.65,127.56,5.19966773]
[1725813292753,1.355,127.65,127.56,1.3414]
[1725813293137,1.355,127.65,127.56,5.27688796]
[1725813294542,3.1344,127.62,127.56,5.27688796]
[1725813294946,1.355,127.65,127.58,3.1352]
[1725813295147,1.355,127.65,127.56,5.27688796]
[1725813296246,3.1347,127.61,127.58,3.1354]
[1725813299259,3.1342,127.63,127.6,3.1349]
[1725813300255,3.1342,127.63,127.59,3.1351]
[1725813302954,3.1342,127.63,127.6,3.1348]
[1725813303154,3.134,127.64,127.6,3.1348]
[1725813303350,1.355,127.65,127.6,3.1348]
[1725813304445,3.1342,127.63,127.6,3.1348]
[1725813304859,3.1342,127.63,127.59,3.1351]
[1725813305258,44.62693067,127.79,127.59,3.1351]
[1725813305460,27.93285494,127.7,127.59,3.1351]
[1725813305651,3.1344,127.63,127.59,3.1351]
[1725813307256,3.1345,127.62,127.59,3.1351]
[1725813308153,3.1343,127.63,127.59,3.1351]
[1725813308963,3.92703268,127.63,127.56,5.27688796]
[1725813309251,31.52920438,127.7,127.56,5.27688796]
[1725813309462,3.1351,127.6,127.56,8.41258796]
[1725813309662,3.1351,127.6,127.56,5.27688796]
[1725813310555,23.52,127.67,127.56,5.27688796]
[1725813310750,3.1348,127.61,127.56,5.27688796]
[1725813311360,3.1349,127.6,127.57,3.1356]
[1725813311560,23.52,127.67,127.56,5.27688796]
[1725813312165,3.1349,127.61,127.57,3.1356]
[1725813312364,111.94621582,127.68,127.56,5.27688796]
[1725813312663,0.28808314,127.67,127.56,5.27688796]
[1725813313056,0.28808314,127.67,127.59,3.1351]
[1725813313256,111.94621582,127.68,127.59,3.1351]
[1725813313965,3.1343,127.63,127.59,3.1351]
[1725813314161,111.94621582,127.68,127.56,5.27688796]
[1725813314355,3.1336,127.66,127.56,5.27688796]
[1725813315965,3.1336,127.66,127.61,3.1345]
[1725813316465,3.1337,127.65,127.61,3.1345]
[1725813322165,3.1335,127.66,127.62,3.1343]
[1725813323568,3.1332,127.67,127.56,5.27688796]
[1725813324274,3.133,127.68,127.56,5.27688796]
[1725813324865,3.133,127.68,127.56,1.3414]
[1725813325267,3.133,127.68,127.56,5.27425426]
[1725813326274,3.133,127.68,127.64,3.1338]
[1725813326465,3.133,127.68,127.64,7.04001209]
[1725813326775,3.133,127.68,127.64,3.1338]
[1725813327276,3.133,127.68,127.64,6.99591746]
[1725813330270,1.3312,127.76,127.64,3.86211746]
[1725813330471,0.2879355,127.75,127.65,2.7041]
[1725813330672,0.2879355,127.75,127.65,6.6543546]
[1725813330972,0.2879355,127.75,127.68,3.1328]
[1725813331166,0.2879355,127.75,127.65,6.63359471]
[1725813331372,3.97218958,127.75,127.65,6.63359471]
[1725813331672,3.1319,127.73,127.68,3.1327]
[1725813331875,3.97218958,127.75,127.68,3.1327]
[1725813332074,3.1321,127.72,127.68,3.1327]
[1725813332968,2.7066,127.76,127.65,2.7041]
[1725813333173,23.52,127.75,127.65,6.70566678]
[1725813333670,3.1328,127.69,127.65,9.83916678]
[1725813334071,3.1324,127.71,127.65,6.70566678]
[1725813335075,3.1324,127.71,127.67,3.1331]
[1725813335781,3.1325,127.7,127.67,3.1331]
[1725813336872,3.1323,127.71,127.67,3.1331]
[1725813340279,3.1325,127.7,127.67,3.1331]
[1725813342183,249.52,127.82,127.65,2.7041]
[1725813342479,3.9364,127.8,127.65,6.55435062]
[1725813342681,3.9364,127.8,127.69,3.1327]
[1725813342879,0.28785703,127.79,127.69,3.89606829]
[1725813343183,0.28785703,127.79,127.65,2.7041]
[1725813343387,3.1314,127.75,127.71,3.1322]
[1725813343690,3.1314,127.75,127.65,6.65367665]
[1725813344084,3.1314,127.75,127.7,3.1324]
[1725813344878,3.1314,127.75,127.71,3.1322]
[1725813345082,3.131,127.76,127.72,3.94017942]
[1725813345883,3.1313,127.75,127.72,3.94017942]
[1725813347488,3.131,127.76,127.72,3.1319]
[1725813347697,3.9364,127.8,127.72,3.91637969]
[1725813347993,3.9364,127.8,127.66,1.3252]
[1725813348592,3.131,127.76,127.72,3.1319]
[1725813348799,3.9364,127.8,127.66,140.39576022]
[1725813348987,3.9364,127.8,127.66,144.26828962]
[1725813349197,3.1304,127.79,127.66,144.26828962]
[1725813349488,3.9364,127.8,127.66,144.26828962]
[1725813349684,7.0665,127.8,127.75,3.1311]
[1725813349884,7.0665,127.8,127.75,3.89971817]
[1725813350198,226.0,127.86,127.66,144.26828962]
[1725813350199,3.1299,127.81,127.76,3.1307]
[1725813350498,2.6112,127.84,127.75,3.91263503]
[1725813350789,2.6112,127.84,127.66,152.12028962]
[1725813351089,3.1298,127.81,127.66,152.12028962]
[1725813352089,6.55162586,127.84,127.66,152.12028962]
[1725813352090,3.13,127.8,127.66,152.12028962]
[1725813352895,3.13,127.8,127.75,3.1311]
[1725813353098,3.13,127.8,127.75,7.10229824]
[1725813354189,3.13,127.8,127.76,3.1308]
[1725813354697,3.1303,127.79,127.75,3.1311]
[1725813355500,3.1303,127.79,127.75,7.05338222]
[1725813355695,3.1303,127.79,127.75,3.1311]
[1725813355891,29.96543338,127.84,127.75,3.97863348]
[1725813356094,0.28775669,127.83,127.66,144.26828962]
[1725813356500,3.1311,127.76,127.72,3.1318]
[1725813357396,3.1309,127.77,127.72,3.1318]
[1725813357798,3.131,127.76,127.72,3.1318]
[1725813358206,29.96543338,127.84,127.73,3.1316]
[1725813358405,0.28779952,127.83,127.73,6.98834571]
[1725813358903,0.28779952,127.83,127.73,3.85674571]
[1725813359103,0.28779952,127.83,127.66,144.26828962]
[1725813359301,29.96543338,127.84,127.66,144.26828962]
[1725813359495,3.1316,127.74,127.69,3.1325]
[1725813359703,255.96543338,127.84,127.69,3.1325]
[1725813359997,1.28782773,127.83,127.69,3.1325]
[1725813360203,0.28782773,127.82,127.69,3.1325]
[1725813360603,3.1317,127.74,127.7,3.1324]
[1725813361202,3.1317,127.73,127.7,3.1324]
[1725813364007,3.1317,127.73,127.7,7.10202648]
[1725813366406,3.1316,127.74,127.7,7.10202648]
[1725813368305,3.1316,127.74,127.7,3.1324]
[1725813368902,3.1316,127.74,127.7,6.95952182]
[1725813370014,3.86000626,127.81,127.7,3.82712182]
[1725813370203,1.2783,127.8,127.66,140.39576022]
[1725813370409,1.2783,127.8,127.66,144.25498352]
[1725813371412,2.6112,127.84,127.66,140.39576022]
[1725813371725,3.1304,127.79,127.74,3.1313]
[1725813371916,3.1304,127.79,127.74,7.10444437]
[1725813372611,3.1304,127.79,127.75,3.1312]
[1725813377115,3.1302,127.8,127.76,3.1309]
[1725813378524,3.1303,127.79,127.76,3.1309]
[1725813379817,3.1303,127.79,127.75,3.1311]
[1725813380126,1.2783,127.83,127.66,144.40492088]
[1725813380324,0.28774979,127.82,127.66,144.40492088]
[1725813380518,1.2783,127.83,127.66,144.40492088]
[1725813380820,3.1304,127.79,127.75,3.1311]
[1725813381012,3.1304,127.79,127.75,7.07599977]
[1725813381215,3.1304,127.79,127.75,3.1311]
[1725813381822,3.1304,127.79,127.75,7.12805569]
[1725813383220,3.1305,127.78,127.75,7.12805569]
[1725813383426,3.1305,127.78,127.75,3.99695569]
[1725813383625,3.1305,127.78,127.74,3.1314]
[1725813384124,3.1305,127.78,127.74,7.09939225]
[1725813386931,3.1304,127.79,127.75,3.1312]
[1725813387725,3.1298,127.81,127.76,3.1309]
[1725813387951,1.2783,127.83,127.75,2.5595]
[1725813388229,1.2783,127.83,127.75,3.8621]
[1725813388431,1.2783,127.83,127.77,3.1306]
[1725813388432,3.1298,127.81,127.77,3.1306]
[1725813389132,3.1296,127.82,127.78,3.1304]
[1725813389520,2.6112,127.84,127.78,3.1304]
[1725813390032,3.1296,127.82,127.78,3.1304]
[1725813394230,3.1298,127.81,127.78,3.1304]
[1725813395230,3.1296,127.82,127.78,3.1304]
[1725813397326,3.1298,127.81,127.77,3.1306]
[1725813401334,3.1301,127.8,127.76,3.1308]
[1725813404737,3.1301,127.8,127.75,2.5595]
[1725813404738,3.1305,127.78,127.75,5.6906]
[1725813405042,2.6112,127.84,127.75,5.6906]
[1725813405238,3.1304,127.79,127.75,4.4193]
[1725813408245,3.1305,127.78,127.75,3.1311]
[1725813408545,3.9363723,127.82,127.75,3.90467155]
[1725813408743,3.1306,127.78,127.7,1.2666]
[1725813408945,3.1306,127.78,127.73,3.1315]
[1725813409143,3.1306,127.78,127.7,5.09965134]
[1725813410147,3.1306,127.78,127.74,3.1313]
[1725813414052,3.1308,127.77,127.73,3.1316]
[1725813415350,3.82600673,127.82,127.73,3.1316]
[1725813415549,2.6112,127.84,127.73,3.1316]
[1725813415851,3.1309,127.77,127.73,3.1316]
[1725813418850,23.52,127.82,127.69,1.3961]
[1725813419049,0.2877568,127.81,127.69,1.3961]
[1725813419252,0.2877568,127.81,127.69,5.28024571]
[1725813419253,23.52,127.8,127.69,5.28024571]
[1725813419449,27.603,127.79,127.69,5.28024571]
[1725813420249,31.46131142,127.79,127.69,7.01684571]
[1725813420859,3.1317,127.74,127.69,7.01684571]
[1725813421757,31.46131142,127.79,127.69,3.88414571]
[1725813421955,0.28782696,127.78,127.66,139.07056022]
[1725813422261,3.1328,127.69,127.66,142.96023213]
[1725813422463,3.1328,127.69,127.66,3.88967191]
[1725813422757,3.1325,127.7,127.63,1.3404]
[1725813422959,3.1325,127.7,127.63,5.24847297]
[1725813423159,1.0,127.78,127.65,3.1335]
[1725813423359,0.28787603,127.77,127.63,5.24847297]
[1725813423663,0.28787603,127.77,127.65,3.1336]
[1725813423854,0.28787603,127.77,127.63,5.24847297]
[1725813424058,3.1329,127.69,127.63,5.24847297]
[1725813424359,1.0,127.78,127.63,5.24847297]
[1725813424553,3.1326,127.7,127.63,5.24847297]
[1725813424956,3.1326,127.7,127.65,3.1337]
[1725813425457,3.1326,127.7,127.63,5.24847297]
[1725813426264,1.0,127.78,127.63,5.24847297]
[1725813426858,3.1321,127.72,127.67,3.133]
[1725813427456,1.0,127.78,127.63,5.24847297]
[1725813427859,7.99537961,127.79,127.63,5.24847297]
[1725813428562,3.1313,127.75,127.7,3.1322]
[1725813428766,7.99537961,127.79,127.7,3.84886452]
[1725813429069,7.99537961,127.79,127.63,5.24847297]
[1725813429564,4.083,127.79,127.64,1.43882142]
[1725813430066,4.083,127.79,127.65,1.3463]
[1725813430462,1.3905,127.79,127.75,3.1312]
[1725813430666,1.3905,127.79,127.75,6.98355634]
[1725813430959,3.1302,127.8,127.75,3.1312]
[1725813431366,1.2968,127.82,127.75,4.00931579]
[1725813431557,1.2968,127.82,127.69,2.6817]
[1725813432166,2.6824,127.83,127.69,2.6817]
[1725813432462,1.2968,127.87,127.7,1.43817416]
[1725813432768,3.9792,127.87,127.71,1.3306]
[1725813433564,3.9792,127.87,127.71,5.30312231]
[1725813434374,3.1288,127.85,127.8,3.1298]
[1725813434568,3.1288,127.85,127.8,7.09209367]
[1725813434767,3.1288,127.85,127.8,3.1298]
[1725813435365,3.1288,127.85,127.8,7.11595348]
[1725813436067,3.1288,127.85,127.81,3.1298]
[1725813436277,3.1285,127.86,127.81,3.1298]
[1725813436574,3.1285,127.86,127.81,6.99587212]
[1725813436774,3.1285,127.86,127.81,3.1298]
[1725813437373,3.1285,127.86,127.81,7.08748147]
[1725813437577,3.1288,127.85,127.81,3.95768147]
[1725813437782,3.1288,127.85,127.8,3.1299]
[1725813438278,3.1288,127.85,127.71,5.30312231]
[1725813438479,3.1286,127.86,127.71,5.30312231]
[1725813438877,3.1286,127.86,127.81,3.1297]
[1725813439073,3.1286,127.86,127.81,7.01463429]
[1725813439272,3.1286,127.86,127.81,3.1297]
[1725813439878,3.1286,127.86,127.81,7.08777259]
[1725813442475,3.1286,127.86,127.81,3.1297]
[1725813442981,3.1286,127.86,127.82,3.92913016]
[1725813443285,3.1286,127.86,127.82,3.1295]
[1725813443487,3.1286,127.86,127.83,4.00462445]
[1725813443982,3.1288,127.85,127.81,3.1297]
[1725813444279,3.9792,127.87,127.71,1.3306]
[1725813445186,3.1291,127.84,127.79,3.1301]
[1725813445386,3.1291,127.84,127.8,3.82430291]
[1725813446484,27.4992,127.87,127.8,3.82430291]
[1725813446876,3.1293,127.84,127.8,3.82430291]
[1725813447984,27.4992,127.87,127.8,3.82430291]
[1725813448186,27.4992,127.87,127.71,1.3306]
[1725813448676,27.4992,127.87,127.78,3.1304]
[1725813448878,27.4992,127.87,127.78,7.11483001]
[1725813449076,3.1294,127.83,127.78,7.11483001]
[1725813450385,3.1294,127.83,127.79,3.1302]
[1725813450775,3.1297,127.82,127.78,3.98443001]
[1725813450973,3.1297,127.82,127.77,3.1305]
[1725813450974,3.1297,127.82,127.71,1.3306]
[1725813452488,3.1297,127.82,127.78,3.1304]
[1725813452689,3.1297,127.82,127.78,6.98064023]
[1725813452987,27.4992,127.87,127.79,3.1301]
[1725813454180,3.1292,127.84,127.79,3.1301]
[1725813454582,27.4992,127.87,127.79,3.1301]
[1725813455287,3.1293,127.83,127.79,3.1301]
[1725813458479,3.1293,127.83,127.8,3.87763085]
[1725813460084,3.1295,127.82,127.8,3.87763085]
[1725813463687,3.1293,127.83,127.8,7.00753085]
[1725813464087,3.1293,127.83,127.8,3.87763085]
[1725813464288,3.1293,127.83,127.79,3.1301]
[1725813464486,3.1293,127.83,127.8,3.94883393]
[1725813467294,3.1293,127.83,127.79,3.1301]
[1725813467791,3.1293,127.83,127.79,6.97477237]
[1725813469404,3.1295,127.82,127.79,6.97477237]
[1725813470282,3.90179859,127.85,127.79,3.84467237]
[1725813470489,0.28770037,127.84,127.71,1.3306]
[1725813470685,3.86628589,127.85,127.71,5.27669185]
[1725813470990,3.1302,127.8,127.76,3.1308]
[1725813471595,3.1303,127.79,127.76,3.1308]
[1725813472785,3.1303,127.79,127.71,5.27669185]
[1725813473593,3.1301,127.8,127.75,3.131]
[1725813474290,3.1301,127.8,127.76,3.1309]
[1725813479401,3.1296,127.82,127.78,3.1304]
[1725813479694,3.1296,127.82,127.78,7.02646323]
[1725813479890,3.1296,127.82,127.78,3.1304]
[1725813480493,3.1296,127.82,127.78,7.11372942]
[1725813480693,3.1296,127.82,127.79,3.1302]
[1725813481092,3.1293,127.83,127.79,7.13231317]
[1725813481295,3.1293,127.83,127.79,3.1302]
[1725813481801,3.1293,127.83,127.79,7.11705137]
[1725813484605,3.1291,127.84,127.8,3.1299]
[1725813485000,3.1291,127.84,127.79,3.98685137]
[1725813485308,3.1291,127.84,127.71,5.27669185]
[1725813487205,3.1295,127.83,127.71,5.27669185]
[1725813488205,3.1295,127.83,127.79,3.1302]
[1725813488404,3.1295,127.83,127.79,6.96870289]
[1725813488605,3.1295,127.83,127.79,3.1302]
[1725813489109,3.1295,127.83,127.79,7.05094878]
[1725813503915,8.67554645,127.87,127.79,3.92074878]
[1725813504120,1.2968,127.87,127.71,5.27669185]
[1725813504319,3.98294476,127.9,127.72,1.43801443]
[1725813504526,3.1284,127.87,127.82,3.1293]
[1725813504725,3.1284,127.87,127.82,6.95499237]
[1725813505028,3.1284,127.87,127.82,3.1293]
[1725813505427,3.1284,127.87,127.82,7.06234345]
[1725813505725,3.1285,127.86,127.82,7.06234345]
[1725813506335,3.88397746,127.89,127.82,3.93304345]
[1725813506626,23.49,127.91,127.81,3.1296]
[1725813506828,3.1287,127.86,127.81,3.1296]
[1725813507029,3.1287,127.86,127.81,7.07320458]
[1725813507230,3.99445447,127.88,127.81,3.1296]
[1725813507425,3.1288,127.85,127.81,7.10254105]
[1725813513234,3.855204,127.88,127.82,3.1293]
[1725813513235,3.1286,127.86,127.82,3.1293]
[1725813514037,4.69525017,127.91,127.84,3.1288]
[1725813514243,31.41117644,127.92,127.81,3.97294105]
[1725813514244,23.49,127.92,127.81,3.97294105]
[1725813514448,23.49,127.92,127.73,7.829]
[1725813514650,23.49,127.92,127.74,2.6544]
[1725813514651,3.1283,127.87,127.74,2.6544]
[1725813515055,3.1283,127.87,127.82,3.1293]
[1725813515344,3.1283,127.87,127.82,6.9723851]
[1725813515649,3.1283,127.87,127.82,3.1293]
[1725813515849,3.1283,127.87,127.83,3.1292]
[1725813516751,3.1286,127.86,127.82,3.85208072]
[1725813516951,3.1286,127.86,127.74,2.6544]
[1725813517553,3.1284,127.87,127.74,2.6544]
[1725813517954,3.1284,127.87,127.82,3.1293]
[1725813518148,3.1284,127.87,127.82,7.06429687]
[1725813518355,3.1284,127.87,127.82,3.1293]
[1725813518851,3.1284,127.87,127.82,7.02205657]
[1725813521551,23.49,127.89,127.8,3.1298]
[1725813521757,2.6649,127.86,127.8,3.1298]
[1725813521952,3.1289,127.85,127.8,3.1298]
[1725813525952,3.1289,127.85,127.81,3.1297]
[1725813526154,3.1289,127.85,127.82,3.89414802]
[1725813532174,3.1289,127.85,127.82,7.02354802]
[1725813533267,3.1289,127.85,127.82,3.89414802]
[1725813533461,3.1289,127.85,127.81,3.1297]
[1725813533660,3.1289,127.85,127.74,6.48036793]
[1725813533862,3.1289,127.85,127.81,3.1296]
[1725813534063,3.1289,127.85,127.82,3.91965892]
[1725813536364,1.3189,127.88,127.74,6.48036793]
[1725813536972,4.4471,127.88,127.74,6.48036793]
[1725813537374,4.4471,127.88,127.83,3.129]
[1725813537565,4.4471,127.88,127.83,7.01823431]
[1725813537874,3.1282,127.88,127.83,3.88923431]
[1725813538074,3.1282,127.88,127.74,6.48036793]
[1725813538464,3.1282,127.88,127.75,1.43764713]
[1725813538665,3.1282,127.88,127.74,6.48036793]
[1725813540168,3.1283,127.87,127.83,3.1291]
[1725813540481,3.1283,127.87,127.83,7.11181988]
[1725813543780,2.5907,127.9,127.81,3.81961827]
[1725813544081,2.5907,127.9,127.74,6.48036793]
[1725813544082,0.28756631,127.89,127.74,5.7858]
[1725813544271,28.70926713,127.89,127.74,6.61778601]
[1725813544468,0.28756631,127.88,127.74,5.25798601]
[1725813544666,3.1305,127.79,127.74,8.38938601]
[1725813544871,23.49,127.87,127.74,5.25798601]
[1725813545070,0.28767834,127.86,127.74,5.25798601]
[1725813545376,0.28767834,127.86,127.74,3.96338601]
[1725813545680,3.1309,127.77,127.72,3.1317]
[1725813546077,23.49,127.79,127.7,1.3023]
[1725813546286,6.59774202,127.78,127.7,5.25903603]
[1725813546483,6.59774202,127.78,127.7,1.3023]
[1725813546674,3.1314,127.75,127.7,4.4346]
[1725813547174,3.1314,127.75,127.7,8.37412433]
[1725813547989,2.6723,127.78,127.7,5.24182433]
[1725813548391,2.6723,127.78,127.71,1.3678]
[1725813548688,5.8028,127.78,127.73,3.1317]
[1725813548986,1.3196,127.84,127.71,1.3678]
[1725813549278,2.7647,127.83,127.71,1.3678]
[1725813549476,3.86331611,127.82,127.71,1.3678]
[1725813550276,3.1303,127.79,127.74,3.1314]
[1725813550484,2.7647,127.83,127.71,1.3678]